bitfinex/quotes_BTCUSD_20240820
["timestamp","ask_amount","ask_price","bid_price","bid_amount"]
[1724145338318,0.0829,61030.0,61027.0,1.69507528]
[1724145338529,0.0829,61030.0,61027.0,1.60092831]
[1724145339801,0.0829,61030.0,61027.0,1.20766031]
[1724145340215,0.14726,61028.0,61027.0,0.24479457]
[1724145340622,0.1525911,61028.0,61027.0,0.24480195]
[1724145340839,0.14726,61028.0,61027.0,0.24480195]
[1724145341045,0.1525911,61028.0,61027.0,0.2448019]
[1724145341252,0.1525911,61028.0,61027.0,0.2358019]
[1724145341464,0.14726,61028.0,61027.0,0.2153]
[1724145341673,0.14726,61028.0,61027.0,0.24980082]
[1724145341844,0.1525911,61028.0,61027.0,0.23580082]
[1724145342252,0.1525911,61028.0,61027.0,0.24480082]
[1724145342455,0.1525911,61028.0,61027.0,0.12950082]
[1724145342632,0.1525911,61028.0,61027.0,0.02050082]
[1724145342837,0.14726,61028.0,61027.0,0.02750082]
[1724145343151,0.15257409,61028.0,61027.0,0.02750082]
[1724145343493,0.09037409,61028.0,61027.0,0.12750082]
[1724145343841,0.08706,61028.0,61027.0,0.12750082]
[1724145344047,0.01557505,61028.0,61027.0,1.16242353]
[1724145344244,0.01557505,61028.0,61027.0,1.2573787]
[1724145344446,0.00826,61028.0,61027.0,3.01059918]
[1724145344698,0.00826,61028.0,61027.0,3.063633]
[1724145344903,0.00926,61028.0,61027.0,3.055633]
[1724145345044,0.00926,61028.0,61027.0,2.793454]
[1724145345241,0.00926,61028.0,61027.0,2.673365]
[1724145345444,0.00826,61028.0,61027.0,2.662365]
[1724145346032,0.15126,61028.0,61027.0,2.48353129]
[1724145346233,0.15126,61028.0,61027.0,1.67353129]
[1724145346408,0.15126,61028.0,61027.0,1.67353269]
[1724145346647,0.15126,61028.0,61027.0,0.16457758]
[1724145346765,0.15226,61028.0,61027.0,0.02849747]
[1724145346965,0.1575793,61028.0,61027.0,0.02849747]
[1724145347185,0.15126,61028.0,61027.0,0.02849747]
[1724145348092,0.15126,61028.0,61027.0,0.02049747]
[1724145348308,0.15118,61028.0,61027.0,0.012]
[1724145348507,0.15118,61028.0,61027.0,0.02050128]
[1724145348933,0.15118,61028.0,61027.0,0.02950128]
[1724145349335,0.15118,61028.0,61027.0,0.21633499]
[1724145349336,0.00818,61028.0,61027.0,0.21633499]
[1724145349532,0.00818,61028.0,61027.0,0.35241688]
[1724145349738,0.00818,61028.0,61027.0,0.48350588]
[1724145350110,0.00818,61028.0,61027.0,1.36350588]
[1724145350311,0.00818,61028.0,61027.0,1.37246116]
[1724145350510,0.09128,61028.0,61027.0,1.37246116]
[1724145350783,0.09128,61028.0,61027.0,1.37546116]
[1724145350956,0.09128,61028.0,61027.0,2.87546116]
[1724145350957,0.00818,61028.0,61027.0,2.87546116]
[1724145351392,0.00818,61028.0,61027.0,2.86646116]
[1724145351598,0.00818,61028.0,61027.0,3.12864016]
[1724145351984,0.00818,61028.0,61027.0,3.14064016]
[1724145352500,0.00818,61028.0,61027.0,2.93545193]
[1724145352797,0.00818,61028.0,61027.0,2.84900393]
[1724145352963,0.00818,61028.0,61027.0,2.935452]
[1724145353338,0.00818,61028.0,61027.0,2.87846149]
[1724145354145,0.00818,61028.0,61027.0,2.71846149]
[1724145355506,0.08848,61028.0,61027.0,2.71846149]
[1724145355898,0.08848,61028.0,61027.0,2.40053878]
[1724145356257,0.15028,61028.0,61027.0,0.23753026]
[1724145356469,0.15028,61028.0,61027.0,0.07159033]
[1724145356677,0.15028,61028.0,61027.0,0.03550632]
[1724145356678,0.15485199,61028.0,61027.0,0.03550632]
[1724145356886,0.15028,61028.0,61027.0,0.03550632]
[1724145357099,0.15484348,61028.0,61027.0,0.03550632]
[1724145357718,0.15484348,61028.0,61027.0,0.03250632]
[1724145357933,0.15208277,61028.0,61027.0,0.03250632]
[1724145358128,0.15164625,61028.0,61027.0,0.03250632]
[1724145358327,0.15164625,61028.0,61027.0,0.02050632]
[1724145358529,0.14708277,61028.0,61027.0,0.02050632]
[1724145359031,0.14708277,61028.0,61027.0,0.02750632]
[1724145359032,0.15163775,61028.0,61027.0,0.02750632]
[1724145359435,0.00498277,61028.0,61027.0,0.02750632]
[1724145359841,0.00953775,61028.0,61027.0,0.02750632]
[1724145360171,0.00498277,61028.0,61027.0,0.02750632]
[1724145360390,0.00498277,61028.0,61027.0,0.0275082]
[1724145361781,0.00498277,61028.0,61027.0,1.56359392]
[1724145362000,0.00498277,61028.0,61027.0,1.57255068]
[1724145362422,0.00498277,61028.0,61027.0,1.63495068]
[1724145362623,0.00298277,61028.0,61027.0,1.63495068]
[1724145363030,0.00398277,61028.0,61027.0,1.63495068]
[1724145363238,0.00398277,61028.0,61027.0,1.62795068]
[1724145363445,0.00398277,61028.0,61027.0,1.61543867]
[1724145363640,0.00398277,61028.0,61027.0,1.63594189]
[1724145364297,0.00398277,61028.0,61027.0,1.7997756]
[1724145364467,0.00398277,61028.0,61027.0,1.9538646]
[1724145364871,0.07558277,61035.0,61027.0,1.9538646]
[1724145365126,0.07558277,61035.0,61028.0,0.2293756]
[1724145365319,0.07558277,61035.0,61029.0,0.05658567]
[1724145365502,0.07558277,61035.0,61030.0,0.05658567]
[1724145365704,0.07558277,61035.0,61028.0,0.17278993]
[1724145365705,0.07558277,61035.0,61031.0,0.18433693]
[1724145365910,0.000164,61037.0,61032.0,0.02050322]
[1724145366089,0.004,61035.0,61033.0,0.02050322]
[1724145366278,0.004,61035.0,61034.0,0.02050322]
[1724145366481,0.000164,61037.0,61034.0,0.02050322]
[1724145366681,0.000164,61037.0,61035.0,0.02050322]
[1724145366881,0.000164,61037.0,61036.0,0.02050322]
[1724145367086,0.000164,61037.0,61035.0,1.5]
[1724145367291,0.000164,61037.0,61036.0,0.02049972]
[1724145367495,0.000164,61037.0,61036.0,0.18433343]
[1724145367869,0.079264,61037.0,61036.0,0.02049972]
[1724145368476,0.000164,61037.0,61036.0,0.02049972]
[1724145368675,0.002164,61037.0,61036.0,0.02049972]
[1724145369093,0.00099,61037.0,61036.0,0.02049972]
[1724145369499,0.00299,61037.0,61036.0,0.02149972]
[1724145370510,0.00299,61037.0,61036.0,0.41570343]
[1724145370718,0.00299,61037.0,61036.0,0.48000343]
[1724145371120,0.00299,61037.0,61036.0,0.45950371]
[1724145371384,0.00299,61037.0,61036.0,0.48000957]
[1724145371630,0.00099,61037.0,61036.0,0.47900957]
[1724145371836,0.00099,61037.0,61036.0,0.5150887]
[1724145372034,0.00399,61037.0,61036.0,0.5160887]
[1724145372420,0.00099,61037.0,61036.0,0.5150887]
[1724145372817,0.00399,61037.0,61036.0,0.5180887]
[1724145373189,0.00099,61037.0,61036.0,0.5150887]
[1724145373392,0.00099,61037.0,61036.0,0.3077187]
[1724145373616,0.00399,61037.0,61036.0,0.3077187]
[1724145373831,0.00399,61037.0,61036.0,0.27163957]
[1724145374004,0.00399,61037.0,61036.0,0.05658499]
[1724145374207,0.08709,61037.0,61036.0,0.02050586]
[1724145374529,0.08709,61037.0,61036.0,0.05658499]
[1724145374881,0.08709,61037.0,61036.0,0.02051108]
[1724145375086,0.00099,61037.0,61036.0,0.05659021]
[1724145375287,0.00099,61037.0,61036.0,0.10011108]
[1724145375501,0.00099,61037.0,61036.0,0.0756]
[1724145375708,0.07429,61042.0,61036.0,0.09611122]
[1724145375912,0.003,61037.0,61036.0,0.11167763]
[1724145376118,0.003,61037.0,61036.0,0.0816]
[1724145376318,0.003,61037.0,61036.0,0.13818913]
[1724145376432,0.003,61037.0,61036.0,0.1021115]
[1724145376791,0.07429,61042.0,61036.0,0.1021115]
[1724145377015,0.07026,61048.0,61038.0,0.0612]
[1724145377219,0.07026,61048.0,61039.0,0.0205115]
[1724145377352,0.07026,61048.0,61040.0,0.0205115]
[1724145377571,0.00461964,61047.0,61041.0,0.0205115]
[1724145377772,0.00461964,61047.0,61042.0,0.0205115]
[1724145377981,0.00461964,61047.0,61043.0,0.0205115]
[1724145378199,0.00461964,61047.0,61044.0,0.0205115]
[1724145378397,0.00461964,61047.0,61045.0,0.0205115]
[1724145378603,0.00461964,61047.0,61046.0,0.0205115]
[1724145378800,0.08081964,61047.0,61046.0,0.0205115]
[1724145379439,0.08381964,61047.0,61044.0,0.001]
[1724145379664,0.0792,61047.0,61045.0,0.0205111]
[1724145379871,0.0762,61047.0,61046.0,0.0205111]
[1724145380262,0.08081964,61047.0,61046.0,0.0205111]
[1724145380848,0.08381964,61047.0,61046.0,0.0215111]
[1724145381733,0.08381964,61047.0,61046.0,0.02151102]
[1724145383698,0.08464564,61047.0,61046.0,0.02151102]
[1724145384723,0.08464564,61047.0,61046.0,0.001]
[1724145385501,0.08164564,61047.0,61044.0,0.1151]
[1724145385703,0.08164564,61047.0,61045.0,0.0205113]
[1724145385907,0.08164564,61047.0,61044.0,0.1151]
[1724145386111,0.08164564,61047.0,61045.0,0.0205113]
[1724145386311,0.08164564,61047.0,61044.0,0.1151]
[1724145386525,0.08464564,61047.0,61046.0,0.001]
[1724145386951,0.08464564,61047.0,61044.0,0.1151]
[1724145386952,0.08164564,61047.0,61044.0,0.1151]
[1724145387157,0.08164564,61047.0,61045.0,0.02051233]
[1724145387365,0.08164564,61047.0,61044.0,0.1151]
[1724145387777,0.08164564,61047.0,61045.0,0.02051238]
[1724145388202,0.08164564,61047.0,61045.0,0.02151238]
[1724145388203,0.08464564,61047.0,61045.0,0.02151238]
[1724145388402,0.08464564,61047.0,61046.0,0.0205124]
[1724145389435,0.077026,61047.0,61046.0,0.0205124]
[1724145389571,0.080026,61047.0,61046.0,0.0215124]
[1724145390183,0.080026,61047.0,61046.0,0.001]
[1724145390387,0.08469927,61047.0,61046.0,0.001]
[1724145390626,0.14539927,61047.0,61046.0,0.001]
[1724145391394,0.14239927,61047.0,61045.0,0.02051238]
[1724145391598,0.1392,61046.0,61045.0,0.02051238]
[1724145391818,0.27494135,61046.0,61045.0,0.02051238]
[1724145392149,0.44077506,61046.0,61045.0,0.02051238]
[1724145392376,0.70287206,61046.0,61045.0,0.02051238]
[1724145392598,0.69987206,61046.0,61045.0,0.02251238]
[1724145392771,0.70287206,61046.0,61045.0,0.02251238]
[1724145392971,0.70287206,61046.0,61045.0,0.001]
[1724145393466,0.131054,61044.0,61039.0,0.01]
[1724145393642,0.1406,61043.0,61039.0,0.01]
[1724145393844,0.1406,61041.0,61039.0,0.01]
[1724145394150,0.07986789,61040.0,61039.0,0.01]
[1724145394376,0.14526789,61040.0,61039.0,0.01]
[1724145394602,0.80357489,61040.0,61039.0,0.01]
[1724145395165,0.54145189,61040.0,61039.0,0.01]
[1724145395524,0.7052856,61040.0,61039.0,0.01]
[1724145395727,0.7022856,61040.0,61039.0,0.01]
[1724145395980,0.7172856,61040.0,61039.0,0.012]
[1724145396554,0.9794086,61040.0,61039.0,0.012]
[1724145397335,1.2445316,61040.0,61039.0,0.012]
[1724145397555,0.9824086,61040.0,61039.0,0.012]
[1724145397762,1.2445316,61040.0,61039.0,0.012]
[1724145397971,0.9824086,61040.0,61039.0,0.012]
[1724145398193,1.2465316,61040.0,61039.0,0.012]
[1724145398402,1.37554215,61040.0,61039.0,0.011]
[1724145398621,1.30515388,61040.0,61039.0,0.01]
[1724145398841,1.30515388,61040.0,61039.0,0.011]
[1724145398842,1.3149288,61040.0,61039.0,0.011]
[1724145399045,1.3159288,61040.0,61039.0,0.012]
[1724145399256,1.68575561,61040.0,61039.0,0.01]
[1724145399484,1.69557043,61040.0,61039.0,0.01]
[1724145399689,1.68786662,61040.0,61039.0,0.012]
[1724145400118,1.68686662,61040.0,61039.0,0.011]
[1724145400313,1.68686662,61040.0,61039.0,0.012]
[1724145400314,1.68786662,61040.0,61039.0,0.012]
[1724145400520,1.97586662,61040.0,61039.0,0.012]
[1724145400957,2.1398454,61040.0,61039.0,0.012]
[1724145401164,2.1258454,61040.0,61039.0,0.011]
[1724145401373,1.97586662,61040.0,61039.0,0.011]
[1724145401581,1.97486662,61040.0,61039.0,0.01]
[1724145402012,1.98186662,61040.0,61039.0,0.011]
[1724145402633,2.10440902,61040.0,61039.0,0.011]
[1724145402826,2.10440875,61040.0,61039.0,0.011]
[1724145404468,1.98186662,61040.0,61039.0,0.011]
[1724145404835,2.1458454,61040.0,61039.0,0.011]
[1724145405418,2.24381263,61040.0,61039.0,0.011]
[1724145406241,2.07983385,61040.0,61039.0,0.011]
[1724145406582,2.01043665,61040.0,61039.0,0.011]
[1724145407323,2.01042125,61040.0,61039.0,0.011]
[1724145407524,1.90946942,61040.0,61039.0,0.011]
[1724145407929,1.91246942,61040.0,61039.0,0.011]
[1724145408354,2.0844655,61040.0,61039.0,0.011]
[1724145408940,2.2571655,61040.0,61039.0,0.011]
[1724145410564,2.18371942,61040.0,61039.0,0.011]
[1724145410775,2.66371942,61040.0,61039.0,0.011]
[1724145411091,2.66371942,61040.0,61039.0,0.0119086]
[1724145411907,2.8276982,61040.0,61039.0,0.0119086]
[1724145412513,2.87662699,61040.0,61039.0,0.0119086]
[1724145412943,2.23264821,61040.0,61039.0,0.0119086]
[1724145413722,2.23164821,61040.0,61039.0,0.0119086]
[1724145413915,2.22964821,61040.0,61039.0,0.0119086]
[1724145414551,2.23164821,61040.0,61039.0,0.0119086]
[1724145414965,2.23264821,61040.0,61039.0,0.0119086]
[1724145415361,2.18371942,61040.0,61039.0,0.0119086]
[1724145415716,2.20897047,61040.0,61039.0,0.0119086]
[1724145416707,1.326912,61037.0,61036.0,0.0009086]
[1724145416907,2.10074571,61037.0,61036.0,0.0009086]
[1724145417108,2.17478015,61037.0,61036.0,0.0009086]
[1724145417314,2.22369345,61037.0,61036.0,0.0009086]
[1724145417519,2.8469617,61037.0,61036.0,0.0009086]
[1724145417694,2.9455117,61037.0,61036.0,0.0009086]
[1724145417894,2.99296729,61037.0,61036.0,0.0009086]
[1724145418115,3.00696729,61037.0,61036.0,0.0009086]
[1724145418642,3.01496729,61037.0,61036.0,0.0019086]
[1724145418998,3.00696729,61037.0,61036.0,0.0009086]
[1724145419423,2.91714493,61037.0,61036.0,0.0019086]
[1724145419581,2.90314493,61037.0,61036.0,0.0019086]
[1724145419790,3.00096729,61037.0,61036.0,0.0019086]
[1724145420026,2.91714493,61037.0,61036.0,0.0019086]
[1724145420233,3.01496729,61037.0,61036.0,0.0019086]
[1724145420849,3.01495508,61037.0,61036.0,0.0019086]
[1724145421053,2.91714493,61037.0,61036.0,0.0019086]
[1724145421251,3.03942288,61037.0,61036.0,0.0019086]
[1724145421457,2.91714493,61037.0,61036.0,0.0019086]
[1724145422013,3.03922571,61037.0,61036.0,0.0019086]
[1724145422281,2.91922571,61037.0,61036.0,0.0019086]
[1724145422651,2.91922571,61037.0,61027.0,0.0009086]
[1724145422652,1.18458583,61028.0,61027.0,0.0009086]
[1724145422852,2.40130266,61028.0,61027.0,0.0009086]
[1724145423252,2.98362677,61028.0,61027.0,0.0009086]
[1724145423480,3.05552688,61028.0,61027.0,0.0009086]
[1724145423678,3.08000461,61028.0,61027.0,0.0009086]
[1724145423880,3.13570544,61028.0,61027.0,0.0009086]
[1724145424141,3.25796119,61028.0,61027.0,0.0009086]
[1724145424280,1.71808083,61025.0,61024.0,0.0009086]
[1724145424485,2.75519803,61025.0,61024.0,0.0009086]
[1724145424810,2.99709679,61025.0,61024.0,0.0009086]
[1724145425131,3.02154356,61025.0,61024.0,0.0009086]
[1724145425370,3.02151875,61025.0,61024.0,0.0009086]
[1724145425994,0.92268483,61010.0,61005.0,0.0614086]
[1724145426200,1.61681854,61010.0,61005.0,0.0614086]
[1724145426415,1.62133707,61010.0,61005.0,0.0614086]
[1724145427255,1.63533707,61010.0,61005.0,0.0614086]
[1724145427461,1.63533707,61010.0,61005.0,0.0009086]
[1724145427665,1.91158907,61010.0,61005.0,0.0009086]
[1724145428487,1.84878907,61010.0,61005.0,0.0009086]
[1724145428920,1.97937026,61010.0,61005.0,0.0009086]
[1724145429125,1.83278907,61010.0,61005.0,0.0009086]
[1724145429305,1.81878907,61010.0,61005.0,0.0009086]
[1724145429644,1.83278907,61010.0,61005.0,0.0009086]
[1724145429869,1.84678907,61010.0,61005.0,0.0009086]
[1724145430717,1.85669594,61010.0,61005.0,0.0009086]
[1724145431361,2.02067472,61010.0,61005.0,0.0009086]
[1724145432216,2.32743002,61010.0,61005.0,0.0009086]
[1724145436919,2.26283002,61010.0,61005.0,0.0623086]
[1724145437040,1.81085124,61010.0,61005.0,0.0623086]
[1724145437242,1.81085124,61010.0,61009.0,0.0780086]
[1724145437243,1.22694394,61010.0,61009.0,0.0780086]
[1724145437496,1.22694394,61010.0,61009.0,0.1394086]
[1724145438965,1.39964394,61010.0,61009.0,0.1394086]
[1724145439169,1.22694394,61010.0,61009.0,0.1394086]
[1724145442139,1.51494394,61010.0,61009.0,0.0009086]
[1724145442319,1.59734394,61010.0,61009.0,0.0009086]
[1724145443149,2.02357472,61010.0,61009.0,0.0009086]
[1724145443315,2.64627472,61010.0,61009.0,0.0009086]
[1724145443513,2.71571783,61010.0,61009.0,0.0009086]
[1724145444272,2.81321783,61010.0,61009.0,0.0009086]
[1724145444427,2.83721783,61010.0,61009.0,0.0009086]
[1724145445831,2.38721783,61010.0,61009.0,0.0009086]
[1724145446689,2.38804383,61010.0,61009.0,0.0009086]
[1724145447958,2.71804383,61010.0,61009.0,0.0009086]
[1724145448605,2.70813696,61010.0,61009.0,0.0009086]
[1724145450078,2.7569897,61010.0,61009.0,0.0009086]
[1724145450758,1.97775892,61010.0,61009.0,0.0009086]
[1724145450962,1.84650618,61010.0,61009.0,0.0009086]
[1724145451947,2.10875818,61010.0,61009.0,0.0009086]
[1724145452153,1.84650618,61010.0,61009.0,0.0009086]
[1724145452433,1.89541807,61010.0,61009.0,0.0009086]
[1724145452734,2.05939685,61010.0,61009.0,0.0009086]
[1724145454330,2.01048496,61010.0,61009.0,0.0009086]
[1724145455348,2.0838528,61010.0,61009.0,0.0009086]
[1724145455806,1.91987402,61010.0,61009.0,0.0009086]
[1724145456014,1.91991658,61010.0,61009.0,0.0009086]
[1724145457357,1.02325135,61010.0,61009.0,0.1402086]
[1724145457781,1.02425135,61010.0,61009.0,0.1402086]
[1724145458194,0.36662135,61010.0,61009.0,0.1402086]
[1724145458404,0.10278764,61010.0,61009.0,0.1402086]
[1724145458622,0.03334453,61010.0,61009.0,0.1402086]
[1724145459440,0.01934453,61010.0,61009.0,0.1402086]
[1724145459848,0.02834453,61010.0,61009.0,0.1402086]
[1724145460407,0.01434453,61010.0,61009.0,0.1402086]
[1724145460817,0.02834453,61010.0,61009.0,0.1402086]
[1724145461322,0.01434453,61010.0,61009.0,0.1402086]
[1724145461669,0.02834453,61010.0,61009.0,0.1402086]
[1724145462811,0.023826,61010.0,61009.0,0.1402086]
[1724145463009,0.02826738,61010.0,61009.0,0.1402086]
[1724145467058,0.023826,61010.0,61009.0,0.1402086]
[1724145467696,0.02827924,61010.0,61009.0,0.1402086]
[1724145468768,0.023826,61010.0,61009.0,0.1402086]
[1724145469201,0.023826,61010.0,61009.0,0.16075213]
[1724145469354,0.023826,61010.0,61009.0,0.1402086]
[1724145479660,0.023826,61010.0,61009.0,0.1412086]
[1724145480223,0.023826,61010.0,61009.0,0.1402086]
[1724145483198,0.023826,61010.0,61009.0,0.1412086]
[1724145483844,0.023826,61010.0,61009.0,0.16175489]
[1724145484085,0.023826,61010.0,61009.0,0.1402086]
[1724145484229,0.023826,61010.0,61009.0,0.16075542]
[1724145484839,0.009826,61010.0,61009.0,0.16075542]
[1724145485083,0.01399796,61010.0,61009.0,0.1402086]
[1724145485340,0.02199796,61010.0,61009.0,0.1402086]
[1724145486644,0.01280069,61010.0,61009.0,0.1402086]
[1724145486998,0.00480069,61010.0,61009.0,0.1402086]
[1724145487183,0.00480069,61010.0,61009.0,0.16075924]
[1724145487385,0.01780069,61010.0,61009.0,0.16075924]
[1724145487608,0.02180069,61010.0,61009.0,0.16075924]
[1724145487811,0.00462873,61010.0,61009.0,0.16075924]
[1724145488036,0.00462873,61010.0,61009.0,0.16175924]
[1724145488331,0.01462873,61010.0,61009.0,0.16175924]
[1724145488535,0.00062873,61010.0,61009.0,0.16175924]
[1724145488690,0.00362873,61010.0,61009.0,0.16175924]
[1724145488894,0.01662873,61010.0,61009.0,0.16175924]
[1724145489093,0.01662873,61010.0,61009.0,0.16075924]
[1724145489566,0.01662873,61010.0,61009.0,0.16075738]
[1724145490309,0.01662873,61010.0,61009.0,0.16175738]
[1724145491334,0.01662873,61010.0,61009.0,0.16195455]
[1724145491571,0.01662873,61010.0,61009.0,0.16175738]
[1724145491796,0.01662873,61010.0,61009.0,0.16295455]
[1724145493449,0.01662873,61010.0,61009.0,0.16295111]
[1724145493931,0.01662873,61010.0,61009.0,0.16295082]
[1724145495118,0.01662873,61010.0,61009.0,0.14240577]
[1724145495321,0.01662873,61010.0,61009.0,0.16294754]
[1724145497425,0.01662873,61010.0,61009.0,0.14240577]
[1724145497774,0.01662873,61010.0,61009.0,0.16294661]
[1724145505437,0.01662873,61010.0,61009.0,0.16293918]
[1724145505683,0.01662873,61010.0,61009.0,0.14240577]
[1724145505852,0.01662873,61010.0,61009.0,0.16293918]
[1724145507037,0.01662873,61010.0,61009.0,0.14240577]
[1724145507194,0.01662873,61010.0,61009.0,0.16293846]
[1724145508737,0.01662873,61010.0,61009.0,0.14240577]
[1724145508964,0.01662873,61010.0,61009.0,0.16293928]
[1724145510578,0.01662873,61010.0,61009.0,0.08473928]
[1724145510786,0.01662873,61010.0,61009.0,0.02363928]
[1724145511137,0.02052064,61010.0,61009.0,0.02363928]
[1724145511980,0.02052064,61010.0,61009.0,0.02144211]
[1724145513383,0.02052064,61010.0,61009.0,0.02144541]
[1724145516123,0.02052064,61010.0,61009.0,0.16414541]
[1724145516495,0.01662873,61010.0,61009.0,0.16414541]
[1724145516914,0.02050539,61010.0,61009.0,0.02144541]
[1724145517117,0.01662873,61010.0,61009.0,0.02144541]
[1724145517317,0.01262873,61010.0,61009.0,0.02144541]
[1724145517549,0.0165055,61010.0,61009.0,0.02144541]
[1724145517701,0.0165055,61010.0,61009.0,0.02144433]
[1724145518714,0.0173315,61010.0,61009.0,0.02144433]
[1724145521390,0.0173315,61010.0,61009.0,0.0214371]
[1724145522274,0.0173315,61010.0,61009.0,0.02143692]
[1724145523092,0.0173315,61010.0,61009.0,0.16753692]
[1724145524339,0.0173315,61010.0,61009.0,0.16753668]
[1724145525340,0.0173315,61010.0,61009.0,0.16753594]
[1724145525341,0.01345473,61010.0,61009.0,0.16753594]
[1724145525564,0.01345473,61010.0,61009.0,0.1470086]
[1724145525788,0.0170412,61010.0,61009.0,0.16753619]
[1724145527186,0.0170412,61010.0,61009.0,0.02143619]
[1724145529881,0.0170412,61010.0,61009.0,0.0009086]
[1724145530082,0.0170412,61010.0,61009.0,0.0214333]
[1724145533538,0.0170412,61010.0,61009.0,0.02143335]
[1724145536505,0.0170412,61010.0,61009.0,0.10453335]
[1724145536862,0.0170412,61010.0,61009.0,0.16973335]
[1724145537653,0.01345473,61010.0,61009.0,0.16973284]
[1724145537983,0.01669049,61010.0,61009.0,0.16973284]
[1724145539404,0.1805242,61010.0,61009.0,0.02143284]
[1724145539626,0.9306022,61010.0,61009.0,0.0009086]
[1724145539799,1.3852275,61010.0,61009.0,0.0009086]
[1724145540017,1.26229162,61010.0,61009.0,0.0009086]
[1724145540889,1.24966289,61010.0,61009.0,0.0009086]
[1724145541092,1.26366289,61010.0,61009.0,0.0009086]
[1724145541302,1.26266289,61010.0,61009.0,0.0009086]
[1724145541478,1.24866289,61010.0,61009.0,0.0009086]
[1724145541878,1.26366289,61010.0,61009.0,0.0009086]
[1724145542460,1.38653361,61010.0,61009.0,0.0009086]
[1724145542659,1.39887963,61010.0,61009.0,0.0009086]
[1724145543091,1.38487963,61010.0,61009.0,0.0009086]
[1724145543286,1.39887963,61010.0,61009.0,0.0009086]
[1724145543489,1.27400891,61010.0,61009.0,0.0009086]
[1724145544068,1.27500891,61010.0,61009.0,0.0009086]
[1724145544268,1.27166289,61010.0,61009.0,0.0009086]
[1724145544476,1.36991714,61010.0,61009.0,0.0009086]
[1724145544900,1.58571048,61010.0,61009.0,0.0009086]
[1724145545106,1.58410885,61010.0,61009.0,0.0009086]
[1724145545308,1.82096972,61010.0,61009.0,0.0009086]
[1724145545511,1.54471772,61010.0,61009.0,0.0009086]
[1724145545943,1.55871772,61010.0,61009.0,0.0009086]
[1724145547380,1.54471772,61010.0,61009.0,0.0009086]
[1724145547590,1.86991191,61010.0,61009.0,0.0009086]
[1724145548416,2.03381191,61010.0,61009.0,0.0009086]
[1724145548618,2.1488485,61010.0,61009.0,0.0009086]
[1724145549705,2.5788485,61010.0,61009.0,0.0009086]
[1724145550669,2.71198663,61010.0,61009.0,0.0009086]
[1724145550882,2.72598663,61010.0,61009.0,0.0009086]
[1724145551496,2.5648485,61010.0,61009.0,0.0009086]
[1724145551714,2.5788485,61010.0,61009.0,0.0009086]
[1724145552316,3.1123005,61010.0,61009.0,0.0009086]
[1724145552472,3.1263005,61010.0,61009.0,0.0009086]
[1724145552687,3.0983005,61010.0,61009.0,0.0009086]
[1724145552884,3.0991265,61010.0,61009.0,0.0009086]
[1724145553067,3.1131265,61010.0,61009.0,0.0009086]
[1724145553279,1.71645483,61007.0,61006.0,0.0009086]
[1724145553483,2.86240474,61007.0,61006.0,0.0009086]
[1724145554963,2.87640474,61007.0,61006.0,0.0009086]
[1724145555301,2.86240474,61007.0,61006.0,0.0009086]
[1724145555636,2.87640474,61007.0,61006.0,0.0009086]
[1724145556054,2.89040474,61007.0,61006.0,0.0009086]
[1724145558533,2.41040474,61007.0,61006.0,0.0009086]
[1724145559173,2.53279599,61007.0,61006.0,0.0009086]
[1724145560363,2.41040474,61007.0,61006.0,0.0009086]
[1724145562526,2.77040474,61007.0,61006.0,0.0009086]
[1724145562745,2.89279599,61007.0,61006.0,0.0009086]
[1724145563781,2.89275061,61007.0,61006.0,0.0009086]
[1724145564749,2.77040474,61007.0,61006.0,0.0009086]
[1724145565449,2.89274213,61007.0,61006.0,0.0009086]
[1724145566354,2.72876335,61007.0,61006.0,0.0009086]
[1724145567583,2.10649935,61007.0,61006.0,0.0009086]
[1724145567792,2.0820299,61007.0,61006.0,0.0009086]
[1724145568504,2.1936299,61007.0,61006.0,0.0009086]
[1724145568929,2.09576196,61007.0,61006.0,0.0009086]
[1724145569309,2.35760868,61007.0,61006.0,0.0009086]
[1724145570514,2.25974074,61007.0,61006.0,0.0009086]
[1724145570670,2.35760868,61007.0,61006.0,0.0009086]
[1724145570880,2.74974074,61007.0,61006.0,0.0009086]
[1724145571624,2.84763574,61007.0,61006.0,0.0009086]
[1724145572177,2.74974074,61007.0,61006.0,0.0009086]
[1724145573002,2.87207813,61007.0,61006.0,0.0009086]
[1724145575224,2.74974074,61007.0,61006.0,0.0009086]
[1724145577502,2.25974074,61007.0,61006.0,0.0009086]
[1724145578003,2.81974074,61007.0,61006.0,0.0009086]
[1724145581162,2.96671805,61007.0,61006.0,0.0009086]
[1724145582145,2.81974074,61007.0,61006.0,0.0009086]
[1724145583539,2.75324074,61007.0,61006.0,0.0009086]
[1724145585637,2.91859021,61007.0,61006.0,0.0009086]
[1724145587200,2.9190824,61007.0,61006.0,0.0009086]
[1724145587425,2.3590824,61007.0,61006.0,0.0009086]
[1724145588491,2.19324074,61007.0,61006.0,0.0009086]
[1724145589600,1.91766196,61007.0,61006.0,0.0009086]
[1724145589850,2.02926196,61007.0,61006.0,0.0009086]
[1724145591828,1.95006196,61007.0,61006.0,0.0009086]
[1724145593634,1.95010196,61007.0,61006.0,0.0009086]
[1724145595863,2.61750196,61007.0,61006.0,0.0009086]
[1724145596179,2.61750196,61007.0,61002.0,0.95605468]
[1724145596180,1.28157183,61003.0,61002.0,0.95605468]
[1724145596355,2.18814296,61003.0,61002.0,0.95605468]
[1724145596560,2.31114296,61003.0,61002.0,0.95605468]
[1724145596760,2.64782174,61003.0,61002.0,0.95605468]
[1724145596977,2.64782174,61003.0,60990.0,0.0651]
[1724145596978,0.00280283,60991.0,60990.0,0.0651]
[1724145597183,1.15173554,60991.0,60990.0,0.0651]
[1724145597412,0.77173554,60991.0,60990.0,0.0651]
[1724145597838,1.29640154,60991.0,60990.0,0.0651]
[1724145598575,1.39490154,60991.0,60990.0,0.0651]
[1724145598775,1.49330739,60991.0,60990.0,0.0651]
[1724145599627,1.50730739,60991.0,60990.0,0.0651]
[1724145600246,1.52130739,60991.0,60990.0,0.0651]
[1724145600672,1.30840456,60991.0,60990.0,0.1447]
[1724145600873,1.30840456,60991.0,60990.0,0.1456086]
[1724145600874,1.05926571,60991.0,60990.0,0.1456086]
[1724145601193,1.06206854,60991.0,60990.0,0.1456086]
[1724145601404,1.05926571,60991.0,60990.0,0.1456086]
[1724145601850,1.13305139,60991.0,60990.0,0.1456086]
[1724145602255,1.05926571,60991.0,60990.0,0.1456086]
[1724145602461,1.10845242,60991.0,60990.0,0.1456086]
[1724145602655,0.9968521,60991.0,60990.0,0.1456086]
[1724145603305,0.94766571,60991.0,60990.0,0.1456086]
[1724145603507,0.68533271,60991.0,60990.0,0.1456086]
[1724145605368,0.29183371,60991.0,60990.0,0.1456086]
[1724145606367,0.42299971,60991.0,60990.0,0.1456086]